fUSD/lending_fUSD_20240115
["ID","MTS","AMOUNT","RATE_DAILY","PERIOD"]
[311720111,1705356639363,-839.32942768,0.00022695,2]
[311720113,1705356639373,-346.48573268,0.00022695,2]
[311720115,1705356639382,-155.0,0.00022695,2]
[311720117,1705356639391,-259.11941183,0.00022695,2]
[311720119,1705356639401,-161.392586,0.00022695,2]
[311720121,1705356639410,-235.96282679,0.00022695,2]
[311720123,1705356639420,-156.99421172,0.00022695,2]
[311720125,1705356639428,-398.91668285,0.00022695,2]
[311720127,1705356639438,-400.05625285,0.00022695,2]
[311720129,1705356639448,-4087.58174306,0.00022695,2]
[311720131,1705356639458,-155.0,0.00022695,2]
[311720133,1705356639468,-155.19345628,0.00022695,2]
[311720135,1705356639477,-295.08684247,0.00022695,2]
[311720137,1705356639489,-150.0,0.00022695,2]
[311720139,1705356639499,-194.42373898,0.00022696,2]
[311720141,1705356639509,-1351.27219023,0.00022696,2]
[311720144,1705356639518,-311.82193235,0.00022696,2]
[311720147,1705356639528,-908.34393957,0.00022696,2]
[311720149,1705356639537,-268.13381279,0.00022696,2]
[311720151,1705356639547,-310033.39382106,0.00022697,2]
[311720154,1705356639556,-150.0,0.00022698,2]
[311720156,1705356639565,-150.0,0.00022699,2]
[311720159,1705356639575,-1500.0,0.000227,2]
[311720162,1705356639584,-150.0,0.000227,2]
[311720164,1705356639593,-150.0,0.000227,2]
[311720166,1705356639602,-1500.0,0.00022703,2]
[311720168,1705356639612,-150.0,0.00022703,2]
[311720170,1705356639621,-150.0,0.0002271,2]
[311720172,1705356639630,-150.0,0.00022711,2]
[311720174,1705356639639,-180.09552366,0.00022714,2]
[311720176,1705356639648,-150.0,0.00022714,2]
[311720178,1705356639657,-150.0,0.00022715,2]
[311720180,1705356639667,-150.0,0.00022717,2]
[311720182,1705356639676,-300.0,0.00022718,2]
[311720184,1705356639686,-150.0,0.00022719,2]
[311720186,1705356639696,-150.0,0.00022721,2]
[311720188,1705356639706,-150.0,0.00022723,2]
[311720190,1705356639716,-1500.0,0.00022723,2]
[311720192,1705356639725,-150.0,0.00022725,2]
[311720194,1705356639734,-150.0,0.00022725,2]
[311720196,1705356639747,-150.0,0.00022725,2]
[311720197,1705356639756,-461.84463716,0.00022727,2]
[311720200,1705356639766,-150.0,0.00022728,2]
[311720201,1705356639777,-150.0,0.00022733,2]
[311720202,1705356639786,-150.0,0.00022734,2]
[311720203,1705356639795,-150.0,0.00022734,2]
[311720204,1705356639805,-1500.0,0.00022735,2]
[311720205,1705356639815,-150.0,0.00022739,2]
[311720206,1705356639825,-150.0,0.0002274,2]
[311720207,1705356639835,-150.0,0.0002274,2]
[311720208,1705356639844,-150.0,0.00022744,2]
[311720210,1705356639853,-150.0,0.00022745,2]
[311720211,1705356639862,-150.0,0.00022746,2]
[311720213,1705356639871,-150.0,0.00022749,2]
[311720215,1705356639880,-150.0,0.00022749,2]
[311720217,1705356639889,-1500.0,0.00022751,2]
[311720219,1705356639899,-150.0,0.00022752,2]
[311720221,1705356639908,-1510.65544807,0.00022753,2]
[311720223,1705356639917,-150.0,0.00022755,2]
[311720225,1705356639926,-150.0,0.00022755,2]
[311720227,1705356639936,-150.0,0.00022756,2]
[311720229,1705356639945,-1500.0,0.00022758,2]
[311720232,1705356639955,-150.0,0.0002276,2]
[311720234,1705356639965,-150.0,0.00022763,2]
[311720235,1705356639974,-150.0,0.00022764,2]
[311720237,1705356639984,-150.0,0.00022765,2]
[311720239,1705356639993,-150.0,0.00022766,2]
[311720241,1705356640002,-1500.0,0.00022769,2]
[311720243,1705356640011,-443.0,0.0002277,2]
[311720245,1705356640020,-150.0,0.00022771,2]
[311720249,1705356640030,-150.0,0.00022772,2]
[311720250,1705356640039,-150.0,0.00022778,2]
[311720253,1705356640049,-150.0,0.00022779,2]
[311720255,1705356640058,-177.8897533,0.00022779,2]
[311720256,1705356640067,-150.0,0.00022781,2]
[311720257,1705356640077,-150.0,0.00022784,2]
[311720260,1705356640086,-150.0,0.00022785,2]
[311720262,1705356640096,-150.0,0.00022787,2]
[311720264,1705356640105,-150.0,0.00022788,2]
[311720265,1705356640114,-1500.0,0.0002279,2]
[311720266,1705356640123,-155.0,0.00022796,2]
[311720267,1705356640133,-283.29816887,0.00022797,2]
[311720268,1705356640142,-357.84158297,0.00022797,2]
[311720269,1705356640151,-224.63428457,0.00022797,2]
[311720270,1705356640160,-282.25366019,0.00022797,2]
[311720271,1705356640169,-217.04,0.0002284,2]
[311720272,1705356640179,-154.54,0.00022865,2]
[311720273,1705356640188,-1203.54837216,0.00022874,2]
[311720274,1705356640197,-190.0931973,0.0002289,2]
[311720275,1705356640207,-152.52963997,0.000229,2]
[311720276,1705356640218,-18673.32610155,0.000229,2]
[311720277,1705356640227,-180.09552366,0.000229,2]
[311720278,1705356640236,-17607.4,0.000229,2]
[311720279,1705356640245,-1224.15162501,0.000229,2]
[311720280,1705356640254,-583.75381129,0.000229,2]
[311720281,1705356640263,-583.7538111,0.000229,2]
[311720282,1705356640272,-583.7538111,0.000229,2]
[311720283,1705356640281,-163.0200917,0.000229,2]
[311720284,1705356640291,-583.7538111,0.000229,2]
[311720285,1705356640300,-583.7538111,0.000229,2]
[311720286,1705356640309,-583.7538111,0.000229,2]
[311720287,1705356640319,-583.7538111,0.000229,2]
[311720288,1705356640329,-11246.67512972,0.000229,2]
[311720289,1705356640338,-583.7538111,0.000229,2]
[311720290,1705356640348,-583.7538111,0.000229,2]
[311720291,1705356640357,-583.7538111,0.000229,2]
[311720292,1705356640367,-583.7538111,0.000229,2]
[311720293,1705356640377,-2406.71,0.000229,2]
[311720294,1705356640387,-583.7538111,0.000229,2]
[311720295,1705356640397,-583.7538111,0.000229,2]
[311720296,1705356640407,-1685.48203411,0.000229,2]
[311720297,1705356640417,-583.7538111,0.000229,2]
[311720298,1705356640426,-583.7538111,0.000229,2]
[311720299,1705356640436,-583.7538111,0.000229,2]
[311720300,1705356640446,-1495.13833717,0.00022979,2]
[311720301,1705356640455,-234.40116,0.00022998,3]
[311720302,1705356640466,-234.40116,0.00022998,3]
[311720303,1705356640476,-234.40116,0.00022998,3]
[311720304,1705356640485,-234.40116,0.00022998,3]
[311720305,1705356640496,-234.40116,0.00022998,3]
[311720306,1705356640505,-234.40116,0.00022998,3]
[311720307,1705356640515,-234.40116,0.00022998,3]
[311720308,1705356640525,-234.40116,0.00022998,3]
[311720309,1705356640534,-234.40116,0.00022998,3]
[311720310,1705356640543,-234.40116,0.00022998,3]
[311720311,1705356640553,-234.40116,0.00022998,3]
[311720312,1705356640562,-234.40116,0.00022998,3]
[311720313,1705356640572,-234.40116,0.00022998,3]
[311720314,1705356640581,-234.40116,0.00022998,3]
[311720315,1705356640590,-234.40116,0.00022998,3]
[311720316,1705356640600,-234.40116,0.00022998,3]
[311720317,1705356640609,-234.40116,0.00022998,3]
[311720318,1705356640618,-234.40116,0.00022998,3]
[311720319,1705356640628,-234.40116,0.00022998,3]
[311720320,1705356640637,-234.40116,0.00022998,3]
[311720321,1705356640647,-234.40116,0.00022998,3]
[311720322,1705356640656,-234.40116,0.00022998,3]
[311720323,1705356640665,-234.40116,0.00022998,3]
[311720324,1705356640674,-234.40116,0.00022998,3]
[311720325,1705356640683,-234.40116,0.00022998,3]
[311720326,1705356640692,-234.40116,0.00022998,3]
[311720327,1705356640702,-234.40116,0.00022998,3]
[311720328,1705356640711,-234.40116,0.00022998,3]
[311720329,1705356640720,-234.40116,0.00022998,3]
[311720330,1705356640729,-234.40116,0.00022998,3]
[311720331,1705356640738,-234.40116,0.00022998,3]
[311720332,1705356640747,-234.40116,0.00022998,3]
[311720333,1705356640757,-234.40116,0.00022998,3]
[311720334,1705356640766,-234.40116,0.00022998,3]
[311720335,1705356640775,-234.40116,0.00022998,3]
[311720336,1705356640784,-234.40116,0.00022998,3]
[311720337,1705356640794,-234.40116,0.00022998,3]
[311720338,1705356640803,-234.40116,0.00022998,3]
[311720339,1705356640812,-234.40116,0.00022998,3]
[311720340,1705356640822,-234.40116,0.00022998,3]
[311720341,1705356640831,-234.40116,0.00022998,3]
[311720342,1705356640840,-234.40116,0.00022998,3]
[311720343,1705356640850,-234.40116,0.00022998,3]
[311720344,1705356640860,-234.40116,0.00022998,3]
[311720345,1705356640869,-234.40116,0.00022998,3]
[311720346,1705356640879,-234.40116,0.00022998,3]
[311720347,1705356640888,-234.40116,0.00022998,3]
[311720348,1705356640897,-234.40116,0.00022998,3]
[311720349,1705356640906,-234.40116,0.00022998,3]
[311720350,1705356640916,-234.40116,0.00022998,3]
[311720351,1705356640926,-234.40116,0.00022998,3]
[311720352,1705356640936,-234.40116,0.00022998,3]
[311720353,1705356640948,-234.40116,0.00022998,3]
[311720354,1705356640957,-234.40116,0.00022998,3]
[311720355,1705356640966,-234.40116,0.00022998,3]
[311720356,1705356640976,-234.40116,0.00022998,3]
[311720358,1705356640985,-234.40116,0.00022998,3]
[311720360,1705356640994,-234.40116,0.00022998,3]
[311720362,1705356641003,-234.40116,0.00022998,3]
[311720364,1705356641012,-234.40116,0.00022998,3]
[311720365,1705356641021,-234.40116,0.00022998,3]
[311720366,1705356641031,-234.40116,0.00022998,3]
[311720367,1705356641040,-234.40116,0.00022998,3]
[311720368,1705356641050,-234.40116,0.00022998,3]
[311720369,1705356641059,-234.40116,0.00022998,3]
[311720370,1705356641068,-234.40116,0.00022998,3]
[311720371,1705356641077,-234.40116,0.00022998,3]
[311720372,1705356641087,-234.40116,0.00022998,3]
[311720373,1705356641096,-234.40116,0.00022998,3]
[311720374,1705356641105,-234.40116,0.00022998,3]
[311720375,1705356641115,-234.40116,0.00022998,3]
[311720376,1705356641124,-234.40116,0.00022998,3]
[311720377,1705356641133,-234.40116,0.00022998,3]
[311720378,1705356641142,-234.40116,0.00022998,3]
[311720379,1705356641151,-234.40116,0.00022998,3]
[311720380,1705356641160,-234.40116,0.00022998,3]
[311720381,1705356641169,-234.40116,0.00022998,3]
[311720382,1705356641178,-234.40116,0.00022998,3]
[311720383,1705356641188,-154.40116,0.00022998,3]
[311720384,1705356641199,-300.0,0.00022999,2]
[311720385,1705356641212,-300.0,0.00022999,2]
[311720386,1705356641221,-300.0,0.00022999,2]
[311720387,1705356641230,-300.0,0.00022999,2]
[311720388,1705356641239,-300.0,0.00022999,2]
[311720389,1705356641248,-300.0,0.00022999,2]
[311720390,1705356641257,-1409576.95371791,0.00022999,2]
[311720391,1705356641266,-7369089.92189121,0.00023,2]
[311720392,1705356641276,-585860.5299087,0.00023,2]
[311720393,1705356641285,-189.97,0.00023,2]
[311720394,1705356641295,-262.5,0.00023008,2]
[311720395,1705356641305,-154.54,0.00023048,2]
[311720396,1705356641314,-217.04,0.00023058,2]
[311720397,1705356641323,-18673.32610145,0.00023082,2]
[311720398,1705356641332,-202.0,0.00023213,4]
[311720399,1705356641341,-154.54,0.00023231,2]
[311720400,1705356641350,-18673.32610145,0.00023264,2]
[311720401,1705356641360,-217.04,0.00023275,2]
[311720402,1705356641370,-500.0,0.00023288,4]
[311720403,1705356641379,-500.0,0.00023288,4]
[311720404,1705356641388,-395.23308885,0.00023288,4]
[311720405,1705356641397,-213.02217556,0.00023288,4]
[311720406,1705356641406,-447.51466642,0.00023288,4]
[311720407,1705356641415,-642.10293633,0.00023288,4]
[311720408,1705356641424,-500.0,0.00023288,2]
[311720409,1705356641433,-500.0,0.00023288,2]
[311720410,1705356641443,-500.0,0.00023288,2]
[311720411,1705356641452,-500.0,0.00023288,2]
[311720412,1705356641462,-154.28306944,0.00023288,2]
[311720413,1705356641470,-358.87926952,0.00023288,2]
[311720414,1705356641479,-169.3856095,0.00023288,4]
[311720415,1705356641488,-473.7573332,0.00023288,4]
[311720416,1705356641498,-363.41161649,0.00023288,2]
[311720417,1705356641507,-446.9183773,0.00023288,4]
[311720418,1705356641516,-255.38192988,0.00023288,4]
[311720419,1705356641526,-500.0,0.00023288,2]
[311720420,1705356641535,-195.9476132,0.00023288,2]
[311720421,1705356641545,-417.56856792,0.00023288,2]
[311720422,1705356641555,-278.37904528,0.00023288,2]
[311720423,1705356641565,-154.54,0.00023414,2]
[311720424,1705356641574,-18673.32610145,0.00023445,2]
[311720425,1705356641584,-217.04,0.00023493,2]
[311720426,1705356641593,-1241.4,0.00023518,2]
[311720427,1705356641602,-154.54,0.00023597,2]
[311720428,1705356641612,-5675.88011639,0.00023598,3]
[311720429,1705356641621,-18673.32610145,0.00023627,2]
[311720430,1705356641630,-159.1,0.00023661,2]
[311720431,1705356641639,-217.04,0.0002371,2]
[311720432,1705356641648,-154.54,0.00023779,2]
[311720433,1705356641657,-18673.32610145,0.00023809,2]
[311720434,1705356641666,-217.04,0.00023928,2]
[311720435,1705356641676,-154.54,0.00023962,2]
[311720436,1705356641686,-18673.32610145,0.00023991,2]
[311720437,1705356641695,-430.68871395,0.00024,2]
[311720438,1705356641704,-310.52776489,0.000241,2]
[311720439,1705356641714,-327.57,0.0002414,2]
[311720440,1705356641723,-217.04,0.00024145,2]
[311720441,1705356641732,-154.54,0.00024145,2]
[311720442,1705356641742,-18673.32610145,0.00024173,2]
[311720443,1705356641751,-159.1,0.00024252,2]
[311720444,1705356641760,-360.0,0.00024253,2]
[311720445,1705356641770,-167.0,0.00024297,2]
[311720446,1705356641779,-800.0,0.00024349,2]
[311720447,1705356641788,-18673.32610145,0.00024355,2]
[311720448,1705356641797,-6181.0,0.00024356,2]
[311720449,1705356641806,-217.04,0.00024363,2]
[311720450,1705356641815,-2166.16,0.00024365,2]
[311720451,1705356641824,-210.0,0.00024473,2]
[311720452,1705356641834,-162.49,0.00024477,2]
[311720453,1705356641843,-1241.4,0.00024496,2]
[311720454,1705356641853,-18673.32610145,0.00024536,2]
[311720455,1705356641862,-762.0,0.00024538,2]
[311720456,1705356641872,-217.04,0.0002458,2]
[311720457,1705356641881,-167.0,0.00024628,2]
[311720458,1705356641890,-250.0,0.00024658,2]
[311720459,1705356641899,-202.0,0.00024684,6]
[311720460,1705356641909,-18673.32610145,0.00024718,2]
[311720461,1705356641918,-217.04,0.00024798,2]
[311720462,1705356641928,-159.1,0.00024844,2]
[311720463,1705356641937,-162.16215897,0.000249,2]
[311720464,1705356641947,-18673.32610145,0.000249,2]
[311720465,1705356641956,-374.60559964,0.00025,2]
[311720466,1705356641968,-258797.5761349,0.00025,2]
[311720467,1705356641989,-258.26917888,0.00025,2]
[311720468,1705356642246,-2398.23989008,0.00025,2]
[311720469,1705356642378,-27742.95849443,0.00025,2]
[311720470,1705356642391,-130218.82503759,0.00025,2]
[311720495,1705356644154,-296.35664713,0.00022245,2]
[311720496,1705356644167,-3667.70674367,0.00022245,2]
[311720497,1705356644180,-297.87035,0.00022245,2]
[311720498,1705356644191,-288.11805248,0.00022245,2]
[311720499,1705356644207,-579.81418838,0.00022245,2]
[311720500,1705356644219,-869.73547059,0.00022245,2]
[311720501,1705356644502,-3826.41334144,0.00022245,2]
[311720508,1705356645772,-7311.79071,0.00022245,2]
[311720509,1705356645831,-5459.21282924,0.00022245,2]
[311720510,1705356645841,-161.0,0.00022766,2]
[311720511,1705356645850,-461.84463716,0.00022771,2]
[311720512,1705356645859,-583.7538111,0.000229,2]
[311720513,1705356645869,-583.7538111,0.000229,2]
[311720514,1705356645878,-3005.07307257,0.000229,6]
[311720515,1705356645887,-20012.39815081,0.00025,2]
[311720516,1705356645908,-16754.73916509,0.00025,2]
[311720517,1705356645921,-6768.38997299,0.00025,2]
[311720518,1705356645933,-430.22874,0.00025,2]
[311720519,1705356645950,-400.95391186,0.00025,2]
[311720520,1705356645967,-24786.20770065,0.00025,2]
[311720521,1705356646104,-15939.8,0.00025,2]
[311720523,1705356646116,-936.28820959,0.00025,2]
[311720524,1705356646126,-1196.96179041,0.00025,2]
[311720525,1705356646138,-50.51919606,0.00025,2]
[311720526,1705356646147,-693.1186857,0.00025,2]
[311720527,1705356646156,-1070.18909292,0.00025,2]
[311720528,1705356646166,-303.27668532,0.00025,2]
[311720529,1705356646175,-201.83579665,0.00025,2]
[311720530,1705356646184,-73.73054337,0.00025,2]
[311720534,1705356663898,205.0,0.00021741,2]
[311720535,1705356684092,7407.36299805,0.00021741,2]
[311720536,1705356693600,2825.40838862,0.00021741,2]
[311720619,1705357260052,300.0,0.00022067,2]
[311720629,1705357411575,366.44,0.00021701,2]
[311720687,1705357831895,-2138.27006728,0.00022286,2]
[311720690,1705357831904,-161.69449046,0.00022286,2]
[311720692,1705357831913,-516.17501819,0.00022287,2]
[311720694,1705357831922,-474.16224774,0.00022287,2]
[311720696,1705357831931,-235.03855244,0.00022288,2]
[311720697,1705357831941,-300.0,0.00022296,2]
[311720699,1705357831950,-150.0,0.00022296,2]
[311720701,1705357831959,-2965.1826,0.00022297,2]
[311720703,1705357831969,-156.99961797,0.00022396,2]
[311720705,1705357831978,-1000.0,0.00022497,2]
[311720707,1705357831988,-1430.3238,0.00022497,2]
[311720709,1705357831997,-11751.37660592,0.00022497,2]
[311720712,1705357832016,-3927.31193367,0.00022497,2]
[311720714,1705357832029,-179.83826041,0.00022497,2]
[311720716,1705357832038,-2595.411866,0.000225,3]
[311720718,1705357832046,-189.97,0.00023,2]
[311720720,1705357832055,-1351.54450747,0.00023156,3]
[311720721,1705357832065,-202.0,0.00023156,2]
[311720722,1705357832074,-663.53,0.00023323,2]
[311720723,1705357832083,-200.0,0.00023327,2]
[311720724,1705357832093,-2000.0,0.00023337,2]
[311720725,1705357832102,-200.0,0.00023372,2]
[311720726,1705357832111,-1995.44,0.00023398,2]
[311720727,1705357832120,-457.61,0.00023398,2]
[311720728,1705357832130,-157.0,0.00023499,2]
[311720729,1705357832139,-500.0,0.0002352,2]
[311720730,1705357832148,-1168.31,0.00023521,2]
[311720731,1705357832158,-3838.73524616,0.00023538,2]
[311720732,1705357832167,-2103.7521739,0.00023538,2]
[311720733,1705357832176,-1795.33181072,0.00023538,2]
[311720734,1705357832185,-533.9658,0.00023539,2]
[311720735,1705357832194,-250.0,0.0002354,2]
[311720736,1705357832204,-4757.56033534,0.0002354,2]
[311720737,1705357832215,-2985.22591476,0.0002354,2]
[311720738,1705357832226,-2633.99059647,0.0002354,2]
[311720739,1705357832238,-486.17701301,0.0002354,2]
[311720740,1705357833116,-13037.04614042,0.0002354,2]
[311720741,1705357833126,-216.0,0.00023561,2]
[311720742,1705357833135,-154.36,0.00023574,2]
[311720743,1705357833144,-152.45,0.00023605,2]
[311720744,1705357833153,-164.39,0.00023614,2]
[311720745,1705357833163,-150.0,0.00023621,2]
[311720746,1705357833172,-174.71,0.00023629,2]
[311720747,1705357833181,-200.0,0.00023638,2]
[311720748,1705357833191,-157.0,0.00023713,2]
[311720749,1705357833200,-52.86363545,0.00023749,2]
[311720750,1705357833229,-101.49636455,0.00023749,2]
[311720751,1705357833240,-157.84,0.00023898,2]
[311720752,1705357833249,-154.36,0.00023925,2]
[311720753,1705357833258,-157.0,0.00023926,2]
[311720754,1705357833268,-159.12,0.00023954,2]
[311720755,1705357833277,-270.18363545,0.00023965,2]
[311720756,1705357833301,-96.25636455,0.00023965,2]
[311720758,1705357833311,-646.48,0.00023975,2]
[311720760,1705357833319,-211.47,0.00023975,2]
[311720761,1705357833328,-784.0,0.00023993,2]
[311720763,1705357833337,-152.45,0.00024009,2]
[311720766,1705357833347,-154.36,0.000241,2]
[311720767,1705357833356,-157.0,0.0002414,2]
[311720770,1705357833366,-354.73580828,0.00024221,2]
[311720821,1705357838427,-65.26419172,0.00024221,2]
[311720823,1705357838438,-154.36,0.00024276,2]
[311720825,1705357838447,-167.0,0.00024297,2]
[311720827,1705357838457,-157.84,0.00024348,2]
[311720829,1705357838466,-157.0,0.00024354,2]
[311720831,1705357838475,-167.0,0.00024371,2]
[311720833,1705357838484,-152.45,0.00024413,2]
[311720835,1705357838494,-154.36,0.00024451,2]
[311720837,1705357838505,-1168.31,0.000245,2]
[311720839,1705357838514,-210.0,0.00024525,2]
[311720841,1705357838523,-156.56,0.00024533,2]
[311720843,1705357838532,-157.0,0.00024567,2]
[311720845,1705357838541,-154.36,0.00024627,2]
[311720847,1705357838550,-202.0,0.00024629,4]
[311720849,1705357838559,-250.0,0.00024658,2]
[311720851,1705357838569,-262.5,0.00024672,2]
[311720853,1705357838578,-150.0,0.00024727,2]
[311720855,1705357838587,-222.29996028,0.00024746,4]
[311720858,1705357838598,-3329.10489018,0.00024772,2]
[311720860,1705357838607,-157.0,0.00024781,2]
[311720862,1705357838617,-157.84,0.00024797,2]
[311720864,1705357838626,-150.0,0.00024801,2]
[311720865,1705357838635,-154.36,0.00024802,2]
[311720867,1705357838644,-150.0,0.00024809,2]
[311720870,1705357838653,-150.0,0.0002481,2]
[311720872,1705357838663,-150.0,0.0002481,2]
[311720874,1705357838672,-152.45,0.00024817,2]
[311720876,1705357838681,-150.0,0.00024846,2]
[311720878,1705357838691,-150.0,0.00024868,2]
[311720880,1705357838700,-1500.0,0.00024885,2]
[311720881,1705357838709,-150.0,0.00024892,2]
[311720884,1705357838719,-362.56226717,0.000249,2]
[311720886,1705357838728,-150.0,0.00024905,2]
[311720887,1705357838739,-150.0,0.00024926,2]
[311720889,1705357838749,-150.0,0.00024927,2]
[311720892,1705357838759,-150.0,0.00024933,2]
[311720894,1705357838768,-150.0,0.00024945,2]
[311720896,1705357838778,-1500.0,0.00024948,2]
[311720898,1705357838788,-263.49556138,0.0002499,2]
[311720900,1705357838798,-157.0,0.00024995,2]
[311720902,1705357838807,-430.68871395,0.00024996,2]
[311720904,1705357838821,-5438.36025782,0.00024996,2]
[311720906,1705357838830,-415.29035726,0.00024997,2]
[311720907,1705357838840,-150.0,0.00024997,2]
[311720909,1705357838849,-151.40116,0.00024997,2]
[311720911,1705357838859,-151.40116,0.00024997,2]
[311720914,1705357838869,-149.60083489,0.00024997,2]
[311720933,1705357839124,-1.80032511,0.00024997,2]
[311720934,1705357839134,-151.40116,0.00024997,2]
[311720935,1705357839143,-151.40116,0.00024997,2]
[311720936,1705357839153,-151.40116,0.00024997,2]
[311720938,1705357839164,-151.40116,0.00024997,2]
[311720940,1705357839173,-151.40116,0.00024997,2]
[311720942,1705357839182,-151.40116,0.00024997,2]
[311720944,1705357839191,-151.40116,0.00024997,2]
[311720946,1705357839200,-151.40116,0.00024997,2]
[311720948,1705357839209,-151.40116,0.00024997,2]
[311720950,1705357839218,-151.40116,0.00024997,2]
[311720952,1705357839227,-151.40116,0.00024997,2]
[311720954,1705357839237,-151.40116,0.00024997,2]
[311720956,1705357839247,-151.40116,0.00024997,2]
[311720958,1705357839256,-151.40116,0.00024997,2]
[311720960,1705357839265,-151.40116,0.00024997,2]
[311720962,1705357839274,-151.40116,0.00024997,2]
[311720964,1705357839283,-151.40116,0.00024997,2]
[311720966,1705357839293,-151.40116,0.00024997,2]
[311720968,1705357839303,-151.40116,0.00024997,2]
[311720970,1705357839312,-9550.67262131,0.00024998,2]
[311720973,1705357839324,-3546.19419503,0.00024998,2]
[311720975,1705357839336,-1949.66958998,0.00024998,2]
[311720983,1705357839404,-536.73488746,0.00024998,2]
[311720985,1705357839415,-1333.32548145,0.00024998,2]
[311721012,1705357840442,-273.64886292,0.00024998,2]
[311721013,1705357840455,-6154.97175591,0.00024998,2]
[311721014,1705357840464,-3761.41957574,0.00024999,2]
[311721015,1705357840474,-856.59380614,0.00024999,2]
[311721016,1705357840483,-1582.64010755,0.00025,2]
[311721017,1705357840494,-1250.0,0.00025,3]
[311721018,1705357840503,-1070.18909292,0.00025,2]
[311721019,1705357840513,-374.60559964,0.00025,2]
[311721020,1705357840522,-303.27668532,0.00025,2]
[311721021,1705357840531,-1290.02784568,0.00025,2]
[311721022,1705357841176,-6589.03902667,0.00025,2]
[311721090,1705357843122,-2414.6528193,0.00025,2]
[311721092,1705357843253,-6915.24085231,0.00025,2]
[311721093,1705357843434,-376.86476321,0.00024998,2]
[311721094,1705357843452,-69.86654914,0.00025,2]
[311721099,1705357844455,-513.32599679,0.00025,2]
[311721100,1705357844510,-1343.21912643,0.00025,2]
[311721151,1705357846418,-858.62,0.00025,2]
[311721152,1705357846902,-634.33876584,0.00025,2]
[311721153,1705357846914,-1254.99999999,0.00025,2]
[311721154,1705357846935,-4714.54792,0.00025,2]
[311721155,1705357846947,-9417.34,0.00025,2]
[311721156,1705357846981,-317257.77162079,0.00025,2]
[311721189,1705358117370,155.07167351,0.00022076,2]
[311721191,1705358197472,-202.57156383,0.00022167,2]
[311721192,1705358197502,-2474.30996454,0.00022167,2]
[311721193,1705358197531,-354.34701306,0.00022168,2]
[311721194,1705358197564,-766.28397364,0.00022168,2]
[311721195,1705358197593,-150.0,0.00022169,2]
[311721196,1705358197621,-529.04001639,0.00022169,2]
[311721197,1705358197650,-300.0,0.0002217,2]
[311721198,1705358197679,-150.0,0.0002217,2]
[311721199,1705358197708,-288.80634248,0.0002217,2]
[311721200,1705358197737,-419.33924047,0.0002217,2]
[311721201,1705358197765,-2318.58071486,0.0002217,2]
[311721202,1705358197794,-22597.01833293,0.00022173,2]
[311721203,1705358197825,-2965.1826,0.00022178,2]
[311721204,1705358212698,254.28379861,0.00021612,2]
[311721205,1705358216054,2584.2032201,0.00022058,2]
[311721206,1705358354260,3029.77532042,0.00022058,2]
[311721207,1705358383704,396.14,0.0002172,2]
[311721238,1705358923287,391.3,0.00021553,2]
[311721253,1705359033183,-288.94234682,0.00022244,2]
[311721254,1705359033196,-441.05765318,0.00022244,2]
[311721255,1705359033206,-763.44468831,0.00022246,2]
[311721256,1705359033217,-150.0,0.00022247,2]
[311721257,1705359033227,-328.36809681,0.00022269,2]
[311721258,1705359033261,-186.41515541,0.00022269,2]
[311721259,1705359033272,-1146.10786252,0.00022273,2]
[311721260,1705359033282,-169.89417692,0.00022273,2]
[311721261,1705359033293,-3030.74105079,0.00022276,2]
[311721262,1705359033303,-150.0,0.00022278,2]
[311721263,1705359033314,-3847.47639643,0.00022279,2]